fUST/lending_fUST_20250728
["ID","MTS","AMOUNT","RATE_DAILY","PERIOD"]
[375360642,1753632653539,-460.0,0.00021095,2]
[375360644,1753632653549,-460.0,0.00021095,2]
[375360646,1753632653558,-469.48,0.00021095,2]
[375360648,1753632653567,-930.12,0.00021095,2]
[375360650,1753632653577,-411.16,0.00021095,2]
[375360652,1753632653587,-1962.54,0.00021095,2]
[375360654,1753632653597,-460.0,0.00021095,2]
[375360656,1753632653606,-460.0,0.00021095,2]
[375360658,1753632653616,-460.0,0.00021095,2]
[375360660,1753632653625,-460.0,0.00021095,2]
[375360662,1753632653634,-460.0,0.00021095,2]
[375360663,1753632653644,-460.0,0.00021095,2]
[375360665,1753632653653,-460.0,0.00021095,2]
[375360667,1753632653662,-477.3,0.00021095,2]
[375360669,1753632653673,-1478.49,0.00021095,2]
[375360671,1753632653682,-2250.22,0.00021095,2]
[375360673,1753632653692,-460.0,0.00021095,2]
[375360686,1753632653802,-2932.38,0.00021095,2]
[375360688,1753632653823,-460.0,0.00021095,2]
[375360690,1753632653834,-359.25454051,0.00021095,2]
[375360692,1753632653844,-460.0,0.00021095,2]
[375360694,1753632653856,-1105.44,0.00021095,2]
[375360696,1753632653866,-460.0,0.00021095,2]
[375360698,1753632653875,-1168.08,0.00021095,2]
[375360700,1753632653885,-460.0,0.00021095,2]
[375360702,1753632653895,-460.0,0.00021095,2]
[375360704,1753632653904,-460.0,0.00021095,2]
[375360706,1753632653914,-1296.17,0.00021095,2]
[375360708,1753632653924,-1063.91,0.00021095,2]
[375360710,1753632653933,-460.0,0.00021095,2]
[375360712,1753632653943,-3000.0,0.000211,2]
[375360714,1753632653952,-1225.0700569,0.00021107,4]
[375360716,1753632653962,-3000.0,0.0002111,2]
[375360718,1753632653971,-3000.0,0.0002112,2]
[375360720,1753632653980,-500.0,0.00021127,2]
[375360722,1753632653990,-500.0,0.00021127,2]
[375360723,1753632653999,-500.0,0.00021127,2]
[375360725,1753632654008,-3000.0,0.0002113,2]
[375360727,1753632654018,-3000.0,0.0002114,2]
[375360729,1753632654027,-3000.0,0.0002115,2]
[375360731,1753632654036,-815.652,0.00021153,2]
[375360733,1753632654046,-3000.0,0.0002116,2]
[375360735,1753632654055,-3000.0,0.0002117,2]
[375360737,1753632654065,-3000.0,0.0002118,2]
[375360739,1753632654074,-1500.0,0.00021187,2]
[375360741,1753632654084,-3000.0,0.0002119,2]
[375360743,1753632654093,-3000.0,0.000212,2]
[375360746,1753632654108,-3000.0,0.0002121,2]
[375360747,1753632654118,-3000.0,0.0002122,2]
[375360749,1753632654127,-3000.0,0.0002123,2]
[375360751,1753632654137,-3000.0,0.0002124,2]
[375360753,1753632654147,-3000.0,0.0002125,2]
[375360755,1753632654156,-3000.0,0.0002126,2]
[375360757,1753632654167,-480.5484476,0.00021269,2]
[375360759,1753632654177,-500.0,0.00021269,2]
[375360761,1753632654187,-500.0,0.00021269,2]
[375360763,1753632654196,-501.46549128,0.00021269,2]
[375360765,1753632654206,-500.0,0.00021269,2]
[375360767,1753632654215,-500.0,0.00021269,2]
[375360769,1753632654225,-503.3936063,0.00021269,2]
[375360771,1753632654235,-3000.0,0.0002127,2]
[375360773,1753632654244,-1225.0700569,0.00021279,5]
[375360775,1753632654253,-3000.0,0.0002128,2]
[375360777,1753632654262,-3000.0,0.0002129,2]
[375360779,1753632654272,-3000.0,0.000213,2]
[375360781,1753632654282,-3000.0,0.0002131,2]
[375360783,1753632654291,-239.6,0.00021317,4]
[375360785,1753632654301,-3000.0,0.0002132,2]
[375360787,1753632654310,-3000.0,0.0002133,2]
[375360789,1753632654320,-3000.0,0.0002134,2]
[375360791,1753632654330,-151.0,0.0002134,2]
[375360793,1753632654339,-3000.0,0.0002135,2]
[375360795,1753632654350,-150.0,0.00021356,2]
[375360797,1753632654360,-3000.0,0.0002136,2]
[375360799,1753632654369,-759.24,0.00021369,2]
[375360801,1753632654379,-460.0,0.00021369,2]
[375360803,1753632654388,-1233.12,0.00021369,2]
[375360805,1753632654399,-460.0,0.00021369,2]
[375360807,1753632654409,-460.0,0.00021369,2]
[375360809,1753632654420,-460.0,0.00021369,2]
[375360811,1753632654430,-460.0,0.00021369,2]
[375360813,1753632654440,-1077.77,0.00021369,2]
[375360815,1753632654449,-460.0,0.00021369,2]
[375360817,1753632654459,-460.0,0.00021369,2]
[375360819,1753632654469,-460.0,0.00021369,2]
[375360821,1753632654478,-627.87,0.00021369,2]
[375360823,1753632654488,-460.0,0.00021369,2]
[375360825,1753632654497,-460.0,0.00021369,2]
[375360827,1753632654507,-460.0,0.00021369,2]
[375360829,1753632654516,-930.12,0.00021369,2]
[375360830,1753632654526,-1962.54,0.00021369,2]
[375360832,1753632654536,-460.0,0.00021369,2]
[375360834,1753632654545,-460.0,0.00021369,2]
[375360836,1753632654555,-460.0,0.00021369,2]
[375360839,1753632654565,-460.0,0.00021369,2]
[375360840,1753632654575,-460.0,0.00021369,2]
[375360842,1753632654584,-460.0,0.00021369,2]
[375360844,1753632654594,-460.0,0.00021369,2]
[375360846,1753632654604,-477.3,0.00021369,2]
[375360848,1753632654613,-1478.49,0.00021369,2]
[375360850,1753632654622,-2250.22,0.00021369,2]
[375360852,1753632654632,-460.0,0.00021369,2]
[375360854,1753632654641,-2932.38,0.00021369,2]
[375360856,1753632654650,-460.0,0.00021369,2]
[375360858,1753632654660,-1105.44,0.00021369,2]
[375360860,1753632654672,-1168.08,0.00021369,2]
[375360862,1753632654682,-460.0,0.00021369,2]
[375360864,1753632654692,-460.0,0.00021369,2]
[375360866,1753632654702,-460.0,0.00021369,2]
[375360868,1753632654712,-460.0,0.00021369,2]
[375360870,1753632654721,-1296.17,0.00021369,2]
[375360872,1753632654731,-1063.91,0.00021369,2]
[375360874,1753632654742,-460.0,0.00021369,2]
[375360876,1753632654751,-3000.0,0.0002137,2]
[375360878,1753632654761,-500.0,0.00021373,2]
[375360880,1753632654771,-3000.0,0.0002138,2]
[375360882,1753632654783,-3000.0,0.0002139,2]
[375360884,1753632654793,-3450.789547,0.000214,2]
[375360886,1753632654803,-260.0,0.00021415,2]
[375360888,1753632654813,-2055.70914613,0.00021416,2]
[375360890,1753632654824,-266.37944536,0.00021426,2]
[375360892,1753632654833,-1225.0700569,0.00021452,5]
[375360894,1753632654843,-700.0,0.00021508,2]
[375360896,1753632654855,-1225.0700569,0.00021624,5]
[375360898,1753632654866,-759.24,0.00021643,2]
[375360900,1753632654875,-431.32,0.00021643,2]
[375360902,1753632654885,-1233.12,0.00021643,2]
[375360904,1753632654895,-406.5117144,0.00021643,2]
[375360906,1753632654905,-460.0,0.00021643,2]
[375360908,1753632654914,-460.0,0.00021643,2]
[375360910,1753632654926,-460.0,0.00021643,2]
[375360912,1753632654936,-1077.77,0.00021643,2]
[375360914,1753632654945,-460.0,0.00021643,2]
[375360916,1753632654955,-460.0,0.00021643,2]
[375360918,1753632654965,-460.0,0.00021643,2]
[375360920,1753632654974,-627.87,0.00021643,2]
[375360922,1753632654984,-460.0,0.00021643,2]
[375360924,1753632654993,-930.12,0.00021643,2]
[375360926,1753632655002,-1962.54,0.00021643,2]
[375360928,1753632655012,-460.0,0.00021643,2]
[375360930,1753632655022,-460.0,0.00021643,2]
[375360932,1753632655032,-460.0,0.00021643,2]
[375360934,1753632655042,-460.0,0.00021643,2]
[375360936,1753632655051,-460.0,0.00021643,2]
[375360938,1753632655061,-460.0,0.00021643,2]
[375360940,1753632655070,-460.0,0.00021643,2]
[375360942,1753632655080,-477.3,0.00021643,2]
[375360944,1753632655089,-1478.49,0.00021643,2]
[375360946,1753632655099,-460.0,0.00021643,2]
[375360948,1753632655109,-2250.22,0.00021643,2]
[375360950,1753632655119,-2932.38,0.00021643,2]
[375360952,1753632655128,-460.0,0.00021643,2]
[375360954,1753632655138,-1105.44,0.00021643,2]
[375360956,1753632655148,-151.0,0.00021643,2]
[375360958,1753632655158,-151.0,0.00021643,2]
[375360960,1753632655167,-1168.08,0.00021643,2]
[375360962,1753632655177,-460.0,0.00021643,2]
[375360964,1753632655186,-151.0,0.00021643,2]
[375360966,1753632655195,-460.0,0.00021643,2]
[375360968,1753632655205,-460.0,0.00021643,2]
[375360970,1753632655215,-1296.17,0.00021643,2]
[375360972,1753632655225,-460.0,0.00021643,2]
[375360974,1753632655234,-460.0,0.00021643,2]
[375360976,1753632655244,-1063.91,0.00021643,2]
[375360977,1753632655254,-500.0,0.00021675,2]
[375360980,1753632655263,-469.69724908,0.00021675,2]
[375360982,1753632655272,-500.0,0.00021675,2]
[375360983,1753632655282,-239.6,0.00021733,4]
[375360986,1753632655292,-1225.0700569,0.00021797,6]
[375360987,1753632655302,-1000.0,0.00021817,2]
[375360990,1753632655311,-1000.0,0.00021817,2]
[375360992,1753632655321,-1008.39868873,0.00021817,2]
[375360993,1753632655332,-1000.0,0.00021817,2]
[375360995,1753632655341,-759.24,0.00021917,2]
[375360997,1753632655351,-1233.12,0.00021917,2]
[375360999,1753632655360,-460.0,0.00021917,2]
[375361001,1753632655370,-460.0,0.00021917,2]
[375361003,1753632655380,-460.0,0.00021917,2]
[375361005,1753632655389,-1077.77,0.00021917,2]
[375361007,1753632655399,-176.24,0.00021917,2]
[375361010,1753632655409,-286.78,0.00021917,2]
[375361012,1753632655420,-460.0,0.00021917,2]
[375361013,1753632655430,-627.87,0.00021917,2]
[375361016,1753632655440,-460.0,0.00021917,2]
[375361018,1753632655450,-930.12,0.00021917,2]
[375361019,1753632655459,-1962.54,0.00021917,2]
[375361021,1753632655469,-151.0,0.00021917,2]
[375361023,1753632655479,-151.0,0.00021917,2]
[375361025,1753632655488,-460.0,0.00021917,2]
[375361027,1753632655498,-460.0,0.00021917,2]
[375361029,1753632655508,-460.0,0.00021917,2]
[375361031,1753632655517,-460.0,0.00021917,2]
[375361034,1753632655527,-460.0,0.00021917,2]
[375361035,1753632655537,-460.0,0.00021917,2]
[375361037,1753632655546,-460.0,0.00021917,2]
[375361039,1753632655556,-477.3,0.00021917,2]
[375361042,1753632655566,-1478.49,0.00021917,2]
[375361043,1753632655575,-460.0,0.00021917,2]
[375361046,1753632655587,-2250.22,0.00021917,2]
[375361048,1753632655597,-2932.38,0.00021917,2]
[375361050,1753632655606,-460.0,0.00021917,2]
[375361051,1753632655617,-1105.44,0.00021917,2]
[375361054,1753632655627,-1168.08,0.00021917,2]
[375361055,1753632655637,-475.21601731,0.00021917,2]
[375361057,1753632655646,-460.0,0.00021917,2]
[375361059,1753632655656,-460.0,0.00021917,2]
[375361062,1753632655667,-1296.17,0.00021917,2]
[375361063,1753632655676,-460.0,0.00021917,2]
[375361064,1753632655686,-460.0,0.00021917,2]
[375361065,1753632655695,-1063.91,0.00021917,2]
[375361066,1753632655706,-1000.0,0.00021921,2]
[375361067,1753632655716,-360.0,0.00021963,2]
[375361068,1753632655725,-1225.0700569,0.00021969,6]
[375361069,1753632655734,-436.49,0.00022,7]
[375361070,1753632655744,-1489.83,0.00022,7]
[375361071,1753632655753,-1296.01,0.00022,7]
[375361072,1753632655763,-39096.14,0.00022,2]
[375361073,1753632655775,-151.0,0.00022,2]
[375361074,1753632655786,-153.0,0.00022013,2]
[375361075,1753632655795,-153.0,0.00022013,2]
[375361076,1753632655805,-5958.37822043,0.00022066,2]
[375361077,1753632655815,-1225.0700569,0.00022141,6]
[375361078,1753632655828,-239.6,0.00022149,5]
[375361079,1753632655837,-759.24,0.00022191,2]
[375361080,1753632655846,-1233.12,0.00022191,2]
[375361081,1753632655858,-460.0,0.00022191,2]
[375361082,1753632655869,-460.0,0.00022191,2]
[375361083,1753632655879,-606.44,0.00022191,2]
[375361084,1753632655888,-1077.77,0.00022191,2]
[375361085,1753632655898,-460.0,0.00022191,2]
[375361086,1753632655907,-627.87,0.00022191,2]
[375361088,1753632656015,-460.0,0.00022191,2]
[375361090,1753632656026,-1962.54,0.00022191,2]
[375361092,1753632656035,-460.0,0.00022191,2]
[375361094,1753632656044,-460.0,0.00022191,2]
[375361096,1753632656055,-460.0,0.00022191,2]
[375361097,1753632656065,-460.0,0.00022191,2]
[375361099,1753632656075,-460.0,0.00022191,2]
[375361102,1753632656084,-460.0,0.00022191,2]
[375361103,1753632656094,-460.0,0.00022191,2]
[375361106,1753632656103,-477.3,0.00022191,2]
[375361108,1753632656113,-1478.49,0.00022191,2]
[375361109,1753632656123,-460.0,0.00022191,2]
[375361112,1753632656133,-2250.22,0.00022191,2]
[375361114,1753632656143,-2932.38,0.00022191,2]
[375361116,1753632656152,-173.02,0.00022191,2]
[375361117,1753632656162,-1105.44,0.00022191,2]
[375361119,1753632656175,-1168.08,0.00022191,2]
[375361121,1753632656184,-460.0,0.00022191,2]
[375361124,1753632656194,-460.0,0.00022191,2]
[375361125,1753632656204,-1296.17,0.00022191,2]
[375361127,1753632656213,-460.0,0.00022191,2]
[375361130,1753632656223,-460.0,0.00022191,2]
[375361131,1753632656232,-1063.91,0.00022191,2]
[375361133,1753632656242,-150.0,0.00022284,2]
[375361135,1753632656253,-1225.0700569,0.00022314,7]
[375361138,1753632656263,-1000.0,0.00022365,2]
[375361140,1753632656272,-1115.75524555,0.00022365,2]
[375361141,1753632656282,-1500.0,0.00022365,2]
[375361143,1753632656292,-266.37944536,0.00022463,2]
[375361145,1753632656301,-759.24,0.00022465,2]
[375361147,1753632656311,-1233.12,0.00022465,2]
[375361149,1753632656321,-460.0,0.00022465,2]
[375361151,1753632656331,-460.0,0.00022465,2]
[375361153,1753632656341,-1077.77,0.00022465,2]
[375361155,1753632656350,-268.594645,0.00022465,7]
[375361157,1753632656360,-460.0,0.00022465,2]
[375361159,1753632656369,-186.613922,0.00022465,7]
[375361161,1753632656379,-627.87,0.00022465,2]
[375361163,1753632656388,-460.0,0.00022465,2]
[375361165,1753632656398,-2530.77,0.00022465,2]
[375361167,1753632656408,-1962.54,0.00022465,2]
[375361169,1753632656418,-295.679643,0.00022465,7]
[375361171,1753632656427,-295.679643,0.00022465,7]
[375361173,1753632656437,-460.0,0.00022465,2]
[375361175,1753632656446,-460.0,0.00022465,2]
[375361177,1753632656455,-460.0,0.00022465,2]
[375361179,1753632656465,-232.32,0.00022465,2]
[375361181,1753632656474,-460.0,0.00022465,2]
[375361183,1753632656483,-460.0,0.00022465,2]
[375361185,1753632656493,-460.0,0.00022465,2]
[375361187,1753632656503,-477.3,0.00022465,2]
[375361189,1753632656513,-1478.49,0.00022465,2]
[375361191,1753632656523,-460.0,0.00022465,2]
[375361193,1753632656532,-2250.22,0.00022465,2]
[375361195,1753632656542,-2932.38,0.00022465,2]
[375361197,1753632656551,-1105.44,0.00022465,2]
[375361199,1753632656560,-151.0,0.00022465,7]
[375361201,1753632656569,-1168.08,0.00022465,2]
[375361203,1753632656579,-460.0,0.00022465,2]
[375361205,1753632656589,-1296.17,0.00022465,2]
[375361207,1753632656598,-460.0,0.00022465,2]
[375361209,1753632656607,-460.0,0.00022465,2]
[375361211,1753632656616,-1063.91,0.00022465,2]
[375361213,1753632656627,-507.37316975,0.00022468,2]
[375361215,1753632656636,-1225.0700569,0.00022486,7]
[375361217,1753632656646,-460.0,0.00022511,2]
[375361219,1753632656655,-239.6,0.00022565,5]
[375361221,1753632656667,-700.0,0.00022604,2]
[375361223,1753632656677,-1225.0700569,0.00022659,7]
[375361225,1753632656686,-759.24,0.00022739,2]
[375361227,1753632656695,-1233.12,0.00022739,2]
[375361229,1753632656705,-460.0,0.00022739,2]
[375361231,1753632656715,-460.0,0.00022739,2]
[375361233,1753632656724,-1077.77,0.00022739,2]
[375361235,1753632656734,-460.0,0.00022739,2]
[375361237,1753632656743,-627.87,0.00022739,2]
[375361239,1753632656753,-444.9,0.00022739,2]
[375361241,1753632656762,-1962.54,0.00022739,2]
[375361243,1753632656772,-164.35048214,0.00022739,2]
[375361245,1753632656785,-460.0,0.00022739,2]
[375361246,1753632656794,-460.0,0.00022739,2]
[375361248,1753632656803,-460.0,0.00022739,2]
[375361250,1753632656813,-460.0,0.00022739,2]
[375361252,1753632656823,-460.0,0.00022739,2]
[375361254,1753632656832,-477.3,0.00022739,2]
[375361256,1753632656842,-1478.49,0.00022739,2]
[375361258,1753632656853,-460.0,0.00022739,2]
[375361260,1753632656863,-2250.22,0.00022739,2]
[375361262,1753632656873,-2932.38,0.00022739,2]
[375361264,1753632656882,-1105.44,0.00022739,2]
[375361266,1753632656892,-1168.08,0.00022739,2]
[375361268,1753632656901,-460.0,0.00022739,2]
[375361270,1753632656911,-460.0,0.00022739,2]
[375361272,1753632656922,-1296.17,0.00022739,2]
[375361274,1753632656931,-460.0,0.00022739,2]
[375361276,1753632656940,-1063.91,0.00022739,2]
[375361278,1753632656951,-587.0,0.00022776,2]
[375361280,1753632656960,-1225.0700569,0.00022831,8]
[375361282,1753632656970,-2000.0,0.00022913,2]
[375361284,1753632656979,-239.6,0.00022981,5]
[375361286,1753632656989,-754.84,0.00023,2]
[375361288,1753632656998,-1225.0700569,0.00023003,8]
[375361290,1753632657007,-404.39,0.00023008,2]
[375361292,1753632657016,-759.24,0.00023013,2]
[375361294,1753632657026,-1233.12,0.00023013,2]
[375361296,1753632657035,-460.0,0.00023013,2]
[375361298,1753632657044,-480.58681226,0.00023013,2]
[375361300,1753632657053,-1077.77,0.00023013,2]
[375361302,1753632657063,-361.76,0.00023013,2]
[375361304,1753632657073,-627.87,0.00023013,2]
[375361306,1753632657082,-970.56,0.00023013,2]
[375361308,1753632657092,-1962.54,0.00023013,2]
[375361310,1753632657102,-460.0,0.00023013,2]
[375361312,1753632657111,-460.0,0.00023013,2]
[375361314,1753632657120,-460.0,0.00023013,2]
[375361316,1753632657129,-460.0,0.00023013,2]
[375361317,1753632657139,-460.0,0.00023013,2]
[375361320,1753632657148,-477.3,0.00023013,2]
[375361322,1753632657158,-1478.49,0.00023013,2]
[375361323,1753632657167,-460.0,0.00023013,2]
[375361325,1753632657176,-2250.22,0.00023013,2]
[375361327,1753632657186,-2932.38,0.00023013,2]
[375361329,1753632657195,-1105.44,0.00023013,2]
[375361331,1753632657204,-1168.08,0.00023013,2]
[375361333,1753632657213,-460.0,0.00023013,2]
[375361335,1753632657223,-460.0,0.00023013,2]
[375361337,1753632657232,-1296.17,0.00023013,2]
[375361339,1753632657242,-316.4,0.00023013,2]
[375361341,1753632657252,-1063.91,0.00023013,2]
[375361343,1753632657261,-560.0,0.00023058,2]
[375361345,1753632657270,-1225.0700569,0.00023176,8]
[375361347,1753632657279,-150.0,0.00023213,2]
[375361349,1753632657288,-292.79906361,0.00023273,2]
[375361351,1753632657298,-759.24,0.00023287,2]
[375361353,1753632657307,-1233.12,0.00023287,2]
[375361355,1753632657317,-460.0,0.00023287,2]
[375361357,1753632657326,-1077.77,0.00023287,2]
[375361359,1753632657336,-627.87,0.00023287,2]
[375361361,1753632657345,-1962.54,0.00023287,2]
[375361363,1753632657354,-460.0,0.00023287,2]
[375361365,1753632657364,-460.0,0.00023287,2]
[375361367,1753632657373,-460.0,0.00023287,2]
[375361369,1753632657383,-460.0,0.00023287,2]
[375361371,1753632657392,-460.0,0.00023287,2]
[375361373,1753632657401,-477.3,0.00023287,2]
[375361375,1753632657410,-1478.49,0.00023287,2]
[375361377,1753632657421,-460.0,0.00023287,2]
[375361379,1753632657430,-2250.22,0.00023287,2]
[375361381,1753632657439,-2932.38,0.00023287,2]
[375361382,1753632657449,-151.0,0.00023287,7]
[375361384,1753632657459,-151.0,0.00023287,7]
[375361386,1753632657469,-1105.44,0.00023287,2]
[375361388,1753632657479,-1168.08,0.00023287,2]
[375361390,1753632657489,-151.0,0.00023287,7]
[375361392,1753632657499,-460.0,0.00023287,2]
[375361394,1753632657508,-460.0,0.00023287,2]
[375361396,1753632657518,-1296.17,0.00023287,2]
[375361398,1753632657527,-1063.91,0.00023287,2]
[375361400,1753632657537,-39096.14,0.000233,2]
[375361402,1753632657545,-1225.0700569,0.00023348,9]
[375361404,1753632657555,-239.6,0.00023397,6]
[375361406,1753632657565,-1296.01,0.000234,7]
[375361408,1753632657575,-168.0,0.00023406,2]
[375361410,1753632657585,-407.0,0.00023423,2]
[375361412,1753632657595,-197.55022164,0.00023461,2]
[375361414,1753632657604,-1060.0,0.00023499,2]
[375361416,1753632657612,-1489.83,0.000235,7]
[375361418,1753632657622,-266.37944536,0.000235,2]
[375361419,1753632657631,-214.84090509,0.000235,7]
[375361421,1753632657641,-312.16666667,0.000235,7]
[375361423,1753632657651,-1225.0700569,0.00023521,9]
[375361425,1753632657660,-151.0,0.00023521,7]
[375361427,1753632657670,-5392.65021539,0.00023561,2]
[375361429,1753632657679,-759.24,0.00023561,2]
[375361431,1753632657690,-1233.12,0.00023561,2]
[375361433,1753632657699,-460.0,0.00023561,2]
[375361435,1753632657709,-1077.77,0.00023561,2]
[375361437,1753632657718,-627.87,0.00023561,2]
[375361439,1753632657727,-1962.54,0.00023561,2]
[375361441,1753632657737,-151.0,0.00023561,7]
[375361443,1753632657746,-460.0,0.00023561,2]
[375361445,1753632657755,-225.34,0.00023561,2]
[375361447,1753632657765,-244.38,0.00023561,2]
[375361449,1753632657779,-460.0,0.00023561,2]
[375361451,1753632657789,-200.0,0.00023561,2]
[375361453,1753632657798,-460.0,0.00023561,2]
[375361455,1753632657806,-200.0,0.00023561,2]
[375361457,1753632657816,-200.0,0.00023561,2]
[375361459,1753632657825,-248.91366109,0.00023561,2]
[375361461,1753632657835,-477.3,0.00023561,2]
[375361463,1753632657845,-1478.49,0.00023561,2]
[375361464,1753632657856,-460.0,0.00023561,2]
[375361466,1753632657866,-2250.22,0.00023561,2]
[375361468,1753632657876,-2932.38,0.00023561,2]
[375361470,1753632657887,-1105.44,0.00023561,2]
[375361472,1753632657896,-1168.08,0.00023561,2]
[375361482,1753632657988,-460.0,0.00023561,2]
[375361484,1753632657998,-199.46,0.00023561,2]
[375361486,1753632658009,-1296.17,0.00023561,2]
[375361488,1753632658019,-436.49,0.000236,7]
[375361490,1753632658029,-660.0,0.00023606,2]
[375361492,1753632658039,-1225.0700569,0.00023693,9]
[375361494,1753632658049,-700.0,0.000237,2]
[375361495,1753632658059,-239.6,0.00023813,6]
[375361497,1753632658068,-759.24,0.00023835,2]
[375361499,1753632658078,-1233.12,0.00023835,2]
[375361501,1753632658088,-460.0,0.00023835,2]
[375361503,1753632658097,-1077.77,0.00023835,2]
[375361505,1753632658107,-627.87,0.00023835,2]
[375361507,1753632658116,-1962.54,0.00023835,2]
[375361509,1753632658125,-460.0,0.00023835,2]
[375361511,1753632658135,-460.0,0.00023835,2]
[375361513,1753632658144,-437.33433573,0.00023835,2]
[375361515,1753632658153,-477.3,0.00023835,2]
[375361517,1753632658164,-1478.49,0.00023835,2]
[375361519,1753632658179,-460.0,0.00023835,2]
[375361521,1753632658188,-2250.22,0.00023835,2]
[375361523,1753632658197,-2932.38,0.00023835,2]
[375361525,1753632658206,-1105.44,0.00023835,2]
[375361527,1753632658215,-1168.08,0.00023835,2]
[375361529,1753632658224,-460.0,0.00023835,2]
[375361531,1753632658233,-1296.17,0.00023835,2]
[375361533,1753632658243,-1225.0700569,0.00023866,10]
[375361535,1753632658252,-860.9775391,0.000239,2]
[375361537,1753632658261,-168.0,0.00023943,2]
[375361539,1753632658269,-226.746,0.00023986,2]
[375361541,1753632658278,-150.0,0.00023986,2]
[375361542,1753632658287,-2158.0,0.00023986,2]
[375361544,1753632658296,-969.0,0.00023986,2]
[375361546,1753632658305,-526.50274803,0.00024,7]
[375361548,1753632658315,-155.26545874,0.00024027,2]
[375361550,1753632658325,-1225.0700569,0.00024038,10]
[375361552,1753632658335,-500.0,0.0002407,2]
[375361554,1753632658344,-500.0,0.00024079,2]
[375361556,1753632658353,-500.0,0.00024088,2]
[375361558,1753632658362,-500.0,0.00024104,2]
[375361560,1753632658372,-759.24,0.00024109,2]
[375361562,1753632658382,-1233.12,0.00024109,2]
[375361564,1753632658391,-460.0,0.00024109,2]
[375361566,1753632658400,-1077.77,0.00024109,2]
[375361568,1753632658410,-627.87,0.00024109,2]
[375361570,1753632658423,-1962.54,0.00024109,2]
[375361571,1753632658433,-460.0,0.00024109,2]
[375361572,1753632658443,-460.0,0.00024109,2]
[375361573,1753632658453,-477.3,0.00024109,2]
[375361574,1753632658462,-1478.49,0.00024109,2]
[375361575,1753632658473,-460.0,0.00024109,2]
[375361576,1753632658482,-2250.22,0.00024109,2]
[375361577,1753632658492,-2932.38,0.00024109,2]
[375361578,1753632658502,-1105.44,0.00024109,2]
[375361579,1753632658511,-1168.08,0.00024109,2]
[375361580,1753632658522,-460.0,0.00024109,2]
[375361581,1753632658532,-1296.17,0.00024109,2]
[375361582,1753632658542,-204.0,0.00024111,2]
[375361583,1753632658552,-204.0,0.00024114,2]
[375361584,1753632658562,-150.0,0.00024141,2]
[375361585,1753632658572,-760.0,0.00024154,2]
[375361586,1753632658581,-325.09853,0.00024163,8]
[375361587,1753632658591,-153.0,0.00024164,2]
[375361589,1753632658600,-153.0,0.00024164,2]
[375361591,1753632658610,-153.0,0.00024164,2]
[375361593,1753632658620,-500.0,0.00024178,2]
[375361595,1753632658630,-1225.0700569,0.0002421,10]
[375361596,1753632658640,-239.6,0.00024228,6]
[375361598,1753632658650,-500.0,0.00024314,2]
[375361600,1753632658659,-500.0,0.0002435,2]
[375361602,1753632658673,-155.26545874,0.00024356,2]
[375361604,1753632658683,-1225.0700569,0.00024383,11]
[375361606,1753632658692,-759.24,0.00024383,2]